{"text_format":"1","workbook":"xlsx","n_sheets":4,"sheets":["Operations","Daily Report","MonthlyRep","InitialStock2021-2022"],"not_rendered":{"charts":0,"images":0,"macros":1,"external_links":0,"defined_names":8,"comments":0,"pivot_tables":0},"unopened":[],"bounds":{"document_bytes":16777216,"sheet_cells":100000,"rows_first":2000,"rows_last":500,"rows_between":2000,"halvings":0,"cell_chars":16384,"cell_head_chars":4096},"cells_cut":0,"cells_raw":0,"read":"whole","date_system":"1900"}

{"sheet":"Operations","index":0,"n_rows":12,"n_cols":19,"rows_kept":12,"cut":false,"hidden":false,"merged":[]}
["Date","ColA","ColB","ColC","ColD","ColE","ColF","ColG","ColH","ColI","ColJ","ColK","ColL","ColM","ColN","Sub1","Sun2","Price",{"$f":"SUM(R2:R5092)","v":0}]
["2022-09-12","asdasd",null,null,null,33,null,44,null,null,null,null,null,null,null,null,57567]
["2022-09-12","dsfsf","dfsd","fsdfs",null,44,null,44,null,null,null,null,null,null,"jhhj",null,75]
["2022-09-12","sdfsdfsdf","fdsdfs",null,"sdfs",44,null,12212,null,"ghgj",null,null,null,null,null,null,757]
["2022-09-13","wer",null,null,"sdfs",12212,null,686,"sfsf",null,null,null,null,"sgdfg",null,null,57]
["2022-09-15","erww",null,null,null,2,null,6786,null,"sfdsf",null,null,"sf",null,null,"hj",5656]
["2022-09-15","fgfg",null,null,null,23242,null,45645,null,null,null,null,null,null,null,null,757]
["2022-09-16","wer",null,null,null,3423,null,232,null,null,null,null,null,null,null,null,756]
["2022-09-16","wer",null,null,null,232,null,232,null,null,"sfsdf",null,null,null,null,null,57]
["2022-09-17","erw",null,null,null,232,null,23,null,null,null,"sdfs",null,null,null,null,57]
["2022-09-17","dfg","erw",null,null,23,null,45,null,null,null,null,null,null,null,null,575]
["2022-09-17","dfgdgd","ewr","we",null,232,null,686]

{"sheet":"Daily Report","index":1,"n_rows":2,"n_cols":15,"rows_kept":2,"cut":false,"hidden":false,"merged":[]}
["Date:",null,null,null,null,null,null,"Total 1","SumOF Sub1","Total2","SumOF Sub2"]
["ColA","ColB","ColC","ColD","ColF","ColH","ColI","ColJ","ColK","ColL","ColN","ColO","ColP","Price",{"$f":"SUM(N3:N5093)","v":0}]

{"sheet":"MonthlyRep","index":2,"n_rows":2,"n_cols":11,"rows_kept":2,"cut":false,"hidden":false,"merged":[]}
["From Date1",null,null,"To Date2"]
["ColA","ColB","ColC","ColD","ColF","ColH","ColI","ColO","ColP","Price",{"$f":"SUM(J3:J5093)","v":0}]

{"sheet":"InitialStock2021-2022","index":3,"n_rows":21,"n_cols":8,"rows_kept":21,"cut":false,"hidden":true,"merged":[]}
["CategoryNb","Category","Item Description","Total Quantity in Stock","Price (LBP)","Total Price","Notes"]
["O01","CA-BL-SS-Blue","  بلوزة قطنية زرقاء كم قصير ",1521,80000,{"$f":"D2*E2","v":121680000}]
["O02","CA-BL-LS-Blue","بلوزة قطنية زرقاء كم طويل",1237,110000,{"$f":"D3*E3","v":136070000}]
["O03","CA-BL-LS-Turq","بلوزة قطنية تركواز كم  طويلPOLO ",457,95000,43415000]
["O04","CA-BL-SS-Turq","بلوزة قطنية تركواز كم قصير POLO ",363,80000,29040000]
["O05","CA-BL-SS-Car","قميص كارو كم قصير",242,50000,12100000]
["O06","CA-BL-LS-Car","قميص كارو كم طويل",381,50000,19050000]
["O07","CA-Chazwel","شازوبل بناتي افرادي",171,80000,13680000]
["O08","CA-F-LS-White","قميص ابيض بناتي",241,50000,12050000]
["O09","CA-SpSuit-Sum","طقم رياضة صيفي. TECTEL",910,190000,172900000]
["O10","CA-SpSuit-Win","طقم رياضة شتوي",1366,295000,402970000,1365,"splitted"]
["O11","CA-SpShort","شورت رياضة قطن",465,55000,25575000]
["O12","CA-SPPant","بنطلون رياضة افرادي",511,160000,81760000,512,"added from splitted suit"]
["O13","C0-uniform","مريول روضات جديد",628,50000,31400000]
["O14","C0-BL-Wool","بلوزة صوف كحلي روضات",0,40000,0]
["O15","CA-BL-Wool","بلوزة صوف كحلية",103,50000,5150000]
["O16","CA-BL-SS-White","بلوزة قطنية كم قصير ابيض",220,45000,9900000]
["O17","CA-JacNavy-Win","جاكيت شتوي كحلي",1202,135000,162270000]
["O18","CA-Sp-Jacket","جاكيت رياضة افرادي",684,135000,92340000]
["O19","CA-SP-Blouse","TECTELبلوزة رياضة  ",240,100000,24000000]
["O20","CA-SP-Short","شورت رياضة TECTEL",867,90000,78030000]